[Event "Early-Titled-Tuesday-Blitz-October-10-2023"]
[Site "Chess.com"]
[Date "2023.10.10"]
[Round "3"]
[White "Artemiki"]
[Black "savitha1030"]
[Result "1-0"]
[WhiteElo "2288"]
[BlackElo "2464"]
[TimeControl "180+1"]
[EndTime "8:25:44 PDT"]
[Termination "Artemiki won by resignation"]

1. e4 {[%clk 0:03:00.9]} 1... e5 {[%clk 0:02:58]} 2. Nf3 {[%clk 0:03:00.1]} 2...
d6 {[%clk 0:02:58.5]} 3. d4 {[%clk 0:02:59.6]} 3... exd4 {[%clk 0:02:59.4]} 4.
Nxd4 {[%clk 0:03:00]} 4... Nf6 {[%clk 0:03:00.3]} 5. Nc3 {[%clk 0:03:00.3]} 5...
Be7 {[%clk 0:03:01]} 6. Bd3 {[%clk 0:02:43.5]} 6... O-O {[%clk 0:03:01.9]} 7.
O-O {[%clk 0:02:42.8]} 7... Nc6 {[%clk 0:02:47.6]} 8. Nxc6 {[%clk 0:02:41.2]}
8... bxc6 {[%clk 0:02:48.5]} 9. h3 {[%clk 0:02:40.6]} 9... Bb7 {[%clk
0:02:46.9]} 10. f4 {[%clk 0:02:39.4]} 10... c5 {[%clk 0:02:47]} 11. e5 {[%clk
0:02:17.2]} 11... dxe5 {[%clk 0:02:46.5]} 12. fxe5 {[%clk 0:02:14.5]} 12... Qd4+
{[%clk 0:02:47]} 13. Rf2 {[%clk 0:02:06.3]} 13... c4 {[%clk 0:02:29]} 14. Bxh7+
{[%clk 0:01:55.7]} 14... Nxh7 {[%clk 0:02:10.2]} 15. Qxd4 {[%clk 0:01:54.9]}
15... Rad8 {[%clk 0:02:09.9]} 16. Qxc4 {[%clk 0:01:48.9]} 16... Ng5 {[%clk
0:02:05.4]} 17. Bxg5 {[%clk 0:01:45]} 17... Bxg5 {[%clk 0:02:04.9]} 18. Kh1
{[%clk 0:01:42.8]} 18... Be3 {[%clk 0:02:04.2]} 19. Re2 {[%clk 0:01:32.6]} 19...
Bg5 {[%clk 0:02:02.3]} 20. Rf1 {[%clk 0:01:29]} 20... Ba8 {[%clk 0:01:49.8]} 21.
Ref2 {[%clk 0:01:23.4]} 21... Kh7 {[%clk 0:01:42.9]} 22. Qg4 {[%clk 0:00:52.3]}
22... Bh6 {[%clk 0:01:36.4]} 23. e6 {[%clk 0:00:47.3]} 23... f6 {[%clk
0:01:26.6]} 1-0

[Event "Early-Titled-Tuesday-Blitz-October-10-2023"]
[Site "Chess.com"]
[Date "2023.10.10"]
[Round "3"]
[White "nitpicker"]
[Black "motivated_bishop"]
[Result "1/2-1/2"]
[WhiteElo "2259"]
[BlackElo "2473"]
[TimeControl "180+1"]
[EndTime "8:25:49 PDT"]
[Termination "Game drawn by repetition"]

1. d4 {[%clk 0:03:00.9]} 1... Nf6 {[%clk 0:02:59.7]} 2. c4 {[%clk 0:03:00.7]}
2... c5 {[%clk 0:03:00.1]} 3. d5 {[%clk 0:03:00.2]} 3... b5 {[%clk 0:03:00.3]}
4. cxb5 {[%clk 0:03:00.1]} 4... a6 {[%clk 0:03:01]} 5. e3 {[%clk 0:03:00.4]}
5... g6 {[%clk 0:02:58.2]} 6. Nc3 {[%clk 0:02:59.5]} 6... Bg7 {[%clk 0:02:58.6]}
7. Nf3 {[%clk 0:02:59.7]} 7... O-O {[%clk 0:02:58]} 8. a4 {[%clk 0:02:59.9]}
8... Bb7 {[%clk 0:02:58.1]} 9. Ra3 {[%clk 0:02:58.9]} 9... e6 {[%clk 0:02:58.1]}
10. dxe6 {[%clk 0:02:58.5]} 10... fxe6 {[%clk 0:02:57.9]} 11. Qd6 {[%clk
0:02:58.7]} 11... Qc8 {[%clk 0:02:55.9]} 12. Be2 {[%clk 0:02:45.6]} 12... Ne8
{[%clk 0:02:52.4]} 13. Qg3 {[%clk 0:02:44.4]} 13... d5 {[%clk 0:02:51.5]} 14.
Qh3 {[%clk 0:02:37.5]} 14... d4 {[%clk 0:02:38.8]} 15. Bc4 {[%clk 0:02:28.1]}
15... Rf5 {[%clk 0:02:20.6]} 16. e4 {[%clk 0:02:16.8]} 16... Nd6 {[%clk
0:02:14.4]} 17. exf5 {[%clk 0:01:56.5]} 17... Nxc4 {[%clk 0:02:13.8]} 18. fxg6
{[%clk 0:01:32.7]} 18... hxg6 {[%clk 0:02:12.3]} 19. Ng5 {[%clk 0:01:24.5]}
19... Nxa3 {[%clk 0:02:08.7]} 20. Qh7+ {[%clk 0:01:24.2]} 20... Kf8 {[%clk
0:02:08]} 21. Qxg6 {[%clk 0:01:24.3]} 21... Kg8 {[%clk 0:01:10.7]} 22. Qf7+
{[%clk 0:01:03.1]} 22... Kh8 {[%clk 0:01:10.9]} 23. Qh5+ {[%clk 0:00:54]} 23...
Kg8 {[%clk 0:01:10.6]} 24. Qf7+ {[%clk 0:00:53.9]} 24... Kh8 {[%clk 0:01:10.8]}
25. Qh5+ {[%clk 0:00:53.9]} 25... Kg8 {[%clk 0:01:11]} 26. Qf7+ {[%clk
0:00:52.7]} 1/2-1/2

[Event "Early-Titled-Tuesday-Blitz-October-10-2023"]
[Site "Chess.com"]
[Date "2023.10.10"]
[Round "3"]
[White "MagnusCarlsen"]
[Black "Virgo15"]
[Result "1-0"]
[WhiteElo "3279"]
[BlackElo "2741"]
[TimeControl "180+1"]
[EndTime "8:25:50 PDT"]
[Termination "MagnusCarlsen won by resignation"]

1. e4 {[%clk 0:03:00.9]} 1... e6 {[%clk 0:02:58.7]} 2. d4 {[%clk 0:02:59.1]}
2... d5 {[%clk 0:02:59]} 3. e5 {[%clk 0:03:00]} 3... c5 {[%clk 0:02:59]} 4. c3
{[%clk 0:02:59.9]} 4... Nc6 {[%clk 0:02:59.4]} 5. Nf3 {[%clk 0:02:51]} 5... Bd7
{[%clk 0:02:59.5]} 6. Be2 {[%clk 0:02:47.7]} 6... f6 {[%clk 0:02:58.7]} 7. O-O
{[%clk 0:02:47.1]} 7... fxe5 {[%clk 0:02:58]} 8. Nxe5 {[%clk 0:02:46.1]} 8...
Nxe5 {[%clk 0:02:57.6]} 9. dxe5 {[%clk 0:02:47]} 9... Qc7 {[%clk 0:02:58.2]} 10.
Bf4 {[%clk 0:02:46.6]} 10... O-O-O {[%clk 0:02:50.7]} 11. a4 {[%clk 0:02:43.3]}
11... Ne7 {[%clk 0:02:44.7]} 12. Na3 {[%clk 0:02:42.5]} 12... a6 {[%clk
0:02:43]} 13. b4 {[%clk 0:02:39.2]} 13... h6 {[%clk 0:02:30.1]} 14. b5 {[%clk
0:02:37.1]} 14... a5 {[%clk 0:02:27.4]} 15. b6 {[%clk 0:02:36.8]} 15... Qxb6
{[%clk 0:02:08.9]} 16. Rb1 {[%clk 0:02:35.5]} 16... Qc7 {[%clk 0:02:08.5]} 17.
Nb5 {[%clk 0:02:35.1]} 17... Bxb5 {[%clk 0:02:08.4]} 18. Rxb5 {[%clk 0:02:36]}
18... g5 {[%clk 0:01:59.6]} 19. Bg3 {[%clk 0:02:31.5]} 19... Nf5 {[%clk
0:01:52.7]} 20. Bg4 {[%clk 0:02:31.4]} 20... d4 {[%clk 0:01:30.4]} 21. Qf3
{[%clk 0:02:26.7]} 21... Qc6 {[%clk 0:01:07.9]} 22. Bxf5 {[%clk 0:02:23.6]}
22... exf5 {[%clk 0:01:04.2]} 23. Qxf5+ {[%clk 0:02:22.5]} 23... Kb8 {[%clk
0:01:00.1]} 24. e6+ {[%clk 0:02:22.4]} 24... Ka7 {[%clk 0:00:36.5]} 25. Rfb1
{[%clk 0:02:20.9]} 25... b6 {[%clk 0:00:15.9]} 26. Qf7+ {[%clk 0:02:17.5]} 26...
Ka6 {[%clk 0:00:10.5]} 27. Rxb6+ {[%clk 0:02:14.3]} 27... Qxb6 {[%clk
0:00:11.4]} 28. Rxb6+ {[%clk 0:02:14.4]} 28... Kxb6 {[%clk 0:00:12.3]} 29. Qc7+
{[%clk 0:02:14.2]} 29... Ka6 {[%clk 0:00:12.6]} 30. Qxd8 {[%clk 0:02:12.3]} 1-0

[Event "Early-Titled-Tuesday-Blitz-October-10-2023"]
[Site "Chess.com"]
[Date "2023.10.10"]
[Round "3"]
[White "brm72"]
[Black "Riku-gan"]
[Result "0-1"]
[WhiteElo "2515"]
[BlackElo "2839"]
[TimeControl "180+1"]
[EndTime "8:26:09 PDT"]
[Termination "Riku-gan won by resignation"]

1. e4 {[%clk 0:03:00.9]} 1... d5 {[%clk 0:02:56.3]} 2. exd5 {[%clk 0:03:00.9]}
2... Nf6 {[%clk 0:02:55.5]} 3. d4 {[%clk 0:03:00.6]} 3... c6 {[%clk 0:02:55.4]}
4. dxc6 {[%clk 0:02:58.4]} 4... Nxc6 {[%clk 0:02:56.3]} 5. c3 {[%clk 0:02:58]}
5... e5 {[%clk 0:02:53.7]} 6. dxe5 {[%clk 0:02:55.7]} 6... Qxd1+ {[%clk
0:02:54.4]} 7. Kxd1 {[%clk 0:02:56.6]} 7... Ng4 {[%clk 0:02:55]} 8. Ke1 {[%clk
0:02:53.3]} 8... Bc5 {[%clk 0:02:52.7]} 9. Nh3 {[%clk 0:02:51.7]} 9... Bf5
{[%clk 0:02:42.5]} 10. Be2 {[%clk 0:02:40.9]} 10... Ncxe5 {[%clk 0:02:27.4]} 11.
Nd2 {[%clk 0:02:07.4]} 11... O-O-O {[%clk 0:02:21.2]} 12. Nf3 {[%clk 0:01:53.8]}
12... Rhe8 {[%clk 0:02:19.5]} 13. Nxe5 {[%clk 0:01:36]} 13... Nxe5 {[%clk
0:02:20.4]} 14. Be3 {[%clk 0:01:31.8]} 14... Nd3+ {[%clk 0:02:16.7]} 15. Bxd3
{[%clk 0:01:30.2]} 15... Rxd3 {[%clk 0:02:17.6]} 16. Nf4 {[%clk 0:01:26.5]}
16... Bxe3 {[%clk 0:02:13]} 17. Nxd3 {[%clk 0:01:25.4]} 17... Bh6+ {[%clk
0:02:10.5]} 18. Kd1 {[%clk 0:01:20]} 18... Bxd3 {[%clk 0:02:09.9]} 19. g3 {[%clk
0:01:11.5]} 19... Re2 {[%clk 0:02:09.1]} 20. f4 {[%clk 0:01:09.7]} 20... Rxb2
{[%clk 0:02:07.1]} 21. Re1 {[%clk 0:01:08.5]} 21... g5 {[%clk 0:02:05.5]} 22.
Re3 {[%clk 0:01:03.8]} 22... Bf5 {[%clk 0:02:02]} 23. Re5 {[%clk 0:00:59]} 23...
Bg4+ {[%clk 0:02:00.5]} 24. Kc1 {[%clk 0:00:57.7]} 24... Rxh2 {[%clk 0:02:00.9]}
25. fxg5 {[%clk 0:00:56.4]} 25... Bg7 {[%clk 0:02:00.4]} 26. Rc5+ {[%clk
0:00:56.2]} 26... Kd7 {[%clk 0:01:59.8]} 27. a4 {[%clk 0:00:54.9]} 27... b6
{[%clk 0:01:59.3]} 28. Rc4 {[%clk 0:00:54.7]} 28... Be6 {[%clk 0:01:59.6]} 29.
Rh4 {[%clk 0:00:41]} 29... Rg2 {[%clk 0:01:52.5]} 30. Ra3 {[%clk 0:00:24.7]}
30... Bf8 {[%clk 0:01:49.7]} 31. Ra1 {[%clk 0:00:23.9]} 31... Be7 {[%clk
0:01:49.2]} 32. Rxh7 {[%clk 0:00:22.3]} 32... Bxg5+ {[%clk 0:01:49.8]} 0-1

[Event "Early-Titled-Tuesday-Blitz-October-10-2023"]
[Site "Chess.com"]
[Date "2023.10.10"]
[Round "3"]
[White "slorovel"]
[Black "artin10862"]
[Result "0-1"]
[WhiteElo "2510"]
[BlackElo "2817"]
[TimeControl "180+1"]
[EndTime "8:26:09 PDT"]
[Termination "artin10862 won by resignation"]

1. e4 {[%clk 0:02:57.5]} 1... c5 {[%clk 0:02:55.7]} 2. Nf3 {[%clk 0:02:49.2]}
2... Nc6 {[%clk 0:02:51.9]} 3. Bb5 {[%clk 0:02:44.6]} 3... e6 {[%clk 0:02:48.2]}
4. O-O {[%clk 0:02:40.9]} 4... Nge7 {[%clk 0:02:47.5]} 5. Re1 {[%clk 0:02:40.2]}
5... a6 {[%clk 0:02:39.7]} 6. Bf1 {[%clk 0:02:37.3]} 6... d5 {[%clk 0:02:39.6]}
7. exd5 {[%clk 0:02:36.9]} 7... Nxd5 {[%clk 0:02:39.2]} 8. d4 {[%clk 0:02:37.4]}
8... cxd4 {[%clk 0:02:31.3]} 9. Nxd4 {[%clk 0:02:37.3]} 9... Bd7 {[%clk
0:02:30.5]} 10. c4 {[%clk 0:02:35.7]} 10... Nxd4 {[%clk 0:02:24.2]} 11. Qxd4
{[%clk 0:02:34.9]} 11... Nf6 {[%clk 0:02:23.6]} 12. Nc3 {[%clk 0:02:33.8]} 12...
Bc6 {[%clk 0:02:20]} 13. Qxd8+ {[%clk 0:02:29.7]} 13... Rxd8 {[%clk 0:02:19.8]}
14. Bg5 {[%clk 0:02:29.9]} 14... Be7 {[%clk 0:02:19.1]} 15. Rad1 {[%clk
0:02:30.4]} 15... O-O {[%clk 0:02:16.1]} 16. a3 {[%clk 0:02:19.7]} 16... h6
{[%clk 0:02:11.8]} 17. Be3 {[%clk 0:02:16.6]} 17... Nd7 {[%clk 0:02:03.3]} 18.
h3 {[%clk 0:02:09]} 18... Bf6 {[%clk 0:01:56.9]} 19. Ne2 {[%clk 0:01:56.4]}
19... Bxb2 {[%clk 0:01:46.6]} 20. Rd3 {[%clk 0:01:38]} 20... Ne5 {[%clk
0:01:28.4]} 21. Rb3 {[%clk 0:01:36.5]} 21... Nxc4 {[%clk 0:01:25.9]} 22. Bc5
{[%clk 0:01:36.4]} 22... Bf6 {[%clk 0:01:24]} 23. Bxf8 {[%clk 0:01:33.7]} 23...
Nd2 {[%clk 0:01:22.6]} 24. Bxg7 {[%clk 0:01:18.4]} 24... Bxg7 {[%clk 0:01:17.8]}
25. Rg3 {[%clk 0:01:13.1]} 25... Nxf1 {[%clk 0:01:17.2]} 26. Rxf1 {[%clk
0:01:12.8]} 26... Kf8 {[%clk 0:01:14]} 27. Nc3 {[%clk 0:01:05.6]} 27... Be5
{[%clk 0:01:08.5]} 28. Re3 {[%clk 0:01:03.8]} 28... Bd4 {[%clk 0:01:06.9]} 29.
Rd3 {[%clk 0:01:03.8]} 29... Bxf2+ {[%clk 0:01:06.5]} 0-1

[Event "Early-Titled-Tuesday-Blitz-October-10-2023"]
[Site "Chess.com"]
[Date "2023.10.10"]
[Round "3"]
[White "farzadbfd"]
[Black "shimastream"]
[Result "0-1"]
[WhiteElo "2701"]
[BlackElo "2982"]
[TimeControl "180+1"]
[EndTime "8:26:21 PDT"]
[Termination "shimastream won on time"]

1. d4 {[%clk 0:03:00.1]} 1... d6 {[%clk 0:02:59.4]} 2. e4 {[%clk 0:02:59.1]}
2... c6 {[%clk 0:02:59.3]} 3. Nf3 {[%clk 0:02:59]} 3... Qc7 {[%clk 0:02:57.5]}
4. a4 {[%clk 0:02:58.9]} 4... e5 {[%clk 0:02:57.1]} 5. Nc3 {[%clk 0:02:57.3]}
5... Bg4 {[%clk 0:02:54.1]} 6. Be2 {[%clk 0:02:57.3]} 6... Nf6 {[%clk
0:02:53.8]} 7. O-O {[%clk 0:02:55.8]} 7... Be7 {[%clk 0:02:53.9]} 8. h3 {[%clk
0:02:48.1]} 8... Bh5 {[%clk 0:02:53.6]} 9. Re1 {[%clk 0:02:48.3]} 9... O-O
{[%clk 0:02:53.2]} 10. dxe5 {[%clk 0:02:44.2]} 10... dxe5 {[%clk 0:02:53.2]} 11.
Nh4 {[%clk 0:02:45]} 11... Bg6 {[%clk 0:02:43.5]} 12. Nxg6 {[%clk 0:02:36.5]}
12... hxg6 {[%clk 0:02:44.4]} 13. Bc4 {[%clk 0:02:36.8]} 13... Nbd7 {[%clk
0:02:42.6]} 14. a5 {[%clk 0:02:25.2]} 14... a6 {[%clk 0:02:41.3]} 15. Qf3 {[%clk
0:02:19.9]} 15... Bb4 {[%clk 0:02:39.1]} 16. Qg3 {[%clk 0:01:57.7]} 16... Kh8
{[%clk 0:02:20.7]} 17. Rd1 {[%clk 0:00:59.3]} 17... Bxa5 {[%clk 0:02:16]} 18.
Qh4+ {[%clk 0:00:58.7]} 18... Kg8 {[%clk 0:02:12.1]} 19. Rd3 {[%clk 0:00:55]}
19... b5 {[%clk 0:02:05.7]} 20. Bb3 {[%clk 0:00:54.1]} 20... Nc5 {[%clk
0:02:03.3]} 21. Bg5 {[%clk 0:00:49]} 21... Nh7 {[%clk 0:01:56.1]} 22. Be7 {[%clk
0:00:31.3]} 22... Nxd3 {[%clk 0:01:55.8]} 23. Bxf8 {[%clk 0:00:25.1]} 23... Nxb2
{[%clk 0:01:52.5]} 24. Bd6 {[%clk 0:00:02.6]} 24... Qxd6 {[%clk 0:01:50.9]} 25.
Rxa5 {[%clk 0:00:01.5]} 25... Qb4 {[%clk 0:01:46.3]} 26. Qg3 {[%clk 0:00:01]}
26... Qxa5 {[%clk 0:01:43.6]} 27. Qxg6 {[%clk 0:00:01.5]} 27... Qc7 {[%clk
0:01:43.5]} 0-1

[Event "Early-Titled-Tuesday-Blitz-October-10-2023"]
[Site "Chess.com"]
[Date "2023.10.10"]
[Round "3"]
[White "MightyGMpretender"]
[Black "toog"]
[Result "1-0"]
[WhiteElo "2760"]
[BlackElo "2537"]
[TimeControl "180+1"]
[EndTime "8:26:25 PDT"]
[Termination "MightyGMpretender won by resignation"]

1. c4 {[%clk 0:02:48.8]} 1... e6 {[%clk 0:02:59.7]} 2. g3 {[%clk 0:02:45.9]}
2... d5 {[%clk 0:03:00.6]} 3. Bg2 {[%clk 0:02:46.4]} 3... c6 {[%clk 0:03:00.9]}
4. Nf3 {[%clk 0:02:44.2]} 4... dxc4 {[%clk 0:03:01]} 5. O-O {[%clk 0:02:44]}
5... Nf6 {[%clk 0:03:01]} 6. a4 {[%clk 0:02:41.5]} 6... b5 {[%clk 0:02:29.2]} 7.
axb5 {[%clk 0:02:18.5]} 7... cxb5 {[%clk 0:02:28.6]} 8. Nd4 {[%clk 0:02:16.2]}
8... Qxd4 {[%clk 0:02:25.1]} 9. Bxa8 {[%clk 0:02:16.3]} 9... Bc5 {[%clk
0:02:21.9]} 10. Nc3 {[%clk 0:02:09.2]} 10... a6 {[%clk 0:02:20.3]} 11. d3 {[%clk
0:02:04]} 11... cxd3 {[%clk 0:02:17.1]} 12. Be3 {[%clk 0:02:04.2]} 12... Qd6
{[%clk 0:02:15.2]} 13. Bxc5 {[%clk 0:01:51.7]} 13... Qxc5 {[%clk 0:02:16.1]} 14.
Qxd3 {[%clk 0:01:52.1]} 14... O-O {[%clk 0:02:14.9]} 15. Bg2 {[%clk 0:01:50.9]}
15... Nc6 {[%clk 0:02:13.3]} 16. Rfc1 {[%clk 0:01:49.2]} 16... Ne5 {[%clk
0:02:10.2]} 17. Qc2 {[%clk 0:01:46.7]} 17... Rd8 {[%clk 0:02:03.9]} 18. Ne4
{[%clk 0:01:46.3]} 18... Qxc2 {[%clk 0:02:02.2]} 19. Nxf6+ {[%clk 0:01:45.8]}
19... gxf6 {[%clk 0:02:03.1]} 20. Rxc2 {[%clk 0:01:46.2]} 20... Kf8 {[%clk
0:01:55.3]} 21. h3 {[%clk 0:01:36.5]} 21... Ke7 {[%clk 0:01:54.1]} 22. f4 {[%clk
0:01:35.9]} 22... Nc4 {[%clk 0:01:53.5]} 23. Kf2 {[%clk 0:01:36.6]} 23... f5
{[%clk 0:01:52.1]} 24. b3 {[%clk 0:01:35.5]} 24... Nd6 {[%clk 0:01:51.7]} 25.
Rc7+ {[%clk 0:01:33.3]} 25... Rd7 {[%clk 0:01:49]} 26. Rxd7+ {[%clk 0:01:28.8]}
26... Kxd7 {[%clk 0:01:49.9]} 27. Ke3 {[%clk 0:01:28.8]} 27... Ne8 {[%clk
0:01:31.9]} 28. Kd4 {[%clk 0:01:28.3]} 28... Kd6 {[%clk 0:01:32.3]} 29. Rc1
{[%clk 0:01:26.3]} 29... Nc7 {[%clk 0:01:28.4]} 30. Rc6+ {[%clk 0:01:23.5]}
30... Kd7 {[%clk 0:01:27.7]} 31. Kc5 {[%clk 0:01:14.5]} 31... Ne8 {[%clk
0:01:13]} 32. Kb6 {[%clk 0:00:59.1]} 32... Nf6 {[%clk 0:01:12.7]} 33. Rc7+
{[%clk 0:00:58.8]} 33... Kd8 {[%clk 0:01:11.3]} 34. Rxf7 {[%clk 0:00:58.1]}
34... Nh5 {[%clk 0:01:11.7]} 35. Rf8+ {[%clk 0:00:47.8]} 35... Kd7 {[%clk
0:01:09.5]} 36. Bc6+ {[%clk 0:00:48.5]} 1-0

[Event "Early-Titled-Tuesday-Blitz-October-10-2023"]
[Site "Chess.com"]
[Date "2023.10.10"]
[Round "3"]
[White "fu24"]
[Black "Vladimir_Zakhartsov"]
[Result "0-1"]
[WhiteElo "2618"]
[BlackElo "2840"]
[TimeControl "180+1"]
[EndTime "8:26:27 PDT"]
[Termination "Vladimir_Zakhartsov won by resignation"]

1. e4 {[%clk 0:03:00.9]} 1... c5 {[%clk 0:02:59.6]} 2. Nc3 {[%clk 0:02:51.9]}
2... Nc6 {[%clk 0:02:58.7]} 3. f4 {[%clk 0:02:52]} 3... g6 {[%clk 0:02:58.5]} 4.
Nf3 {[%clk 0:02:52.6]} 4... Bg7 {[%clk 0:02:58.2]} 5. d3 {[%clk 0:02:53.1]} 5...
e6 {[%clk 0:02:55.5]} 6. g4 {[%clk 0:02:45.8]} 6... d5 {[%clk 0:02:53.1]} 7. Bg2
{[%clk 0:02:36.8]} 7... Bxc3+ {[%clk 0:02:45.4]} 8. bxc3 {[%clk 0:02:35.5]} 8...
dxe4 {[%clk 0:02:45.8]} 9. dxe4 {[%clk 0:02:36.4]} 9... Qxd1+ {[%clk 0:02:45.3]}
10. Kxd1 {[%clk 0:02:37.3]} 10... Nf6 {[%clk 0:02:44.5]} 11. e5 {[%clk
0:02:03.5]} 11... Nxg4 {[%clk 0:02:43.4]} 12. Ke2 {[%clk 0:02:02.3]} 12... Bd7
{[%clk 0:02:15.8]} 13. Ng5 {[%clk 0:01:59.1]} 13... Ke7 {[%clk 0:01:59.2]} 14.
h3 {[%clk 0:01:55]} 14... Nh6 {[%clk 0:01:58.1]} 15. Be3 {[%clk 0:01:55]} 15...
b6 {[%clk 0:01:56.4]} 16. Ne4 {[%clk 0:01:54.5]} 16... Nf5 {[%clk 0:01:55.8]}
17. Bf2 {[%clk 0:01:54.9]} 17... Rhd8 {[%clk 0:01:51.6]} 18. Rhd1 {[%clk
0:01:54.6]} 18... Na5 {[%clk 0:01:44.2]} 19. Bf3 {[%clk 0:01:50.5]} 19... Bb5+
{[%clk 0:01:39.6]} 20. Ke1 {[%clk 0:01:49.9]} 20... Rxd1+ {[%clk 0:01:38.7]} 21.
Rxd1 {[%clk 0:01:49.3]} 21... Bc6 {[%clk 0:01:27.4]} 22. Ke2 {[%clk 0:01:42.9]}
22... h6 {[%clk 0:01:18.6]} 23. Nd6 {[%clk 0:01:25.9]} 23... Bxf3+ {[%clk
0:01:15]} 24. Kxf3 {[%clk 0:01:25.9]} 24... Nxd6 {[%clk 0:01:06.4]} 25. Bh4+
{[%clk 0:01:18]} 25... g5 {[%clk 0:00:57.1]} 26. exd6+ {[%clk 0:01:18.1]} 26...
Kf6 {[%clk 0:00:56.5]} 27. fxg5+ {[%clk 0:01:19]} 27... hxg5 {[%clk 0:00:57]}
28. Bg3 {[%clk 0:01:15.2]} 28... e5 {[%clk 0:00:47.2]} 29. Ke4 {[%clk
0:01:14.8]} 29... Ke6 {[%clk 0:00:46.9]} 30. Bxe5 {[%clk 0:01:06.3]} 30... f5+
{[%clk 0:00:45.2]} 0-1

[Event "Early-Titled-Tuesday-Blitz-October-10-2023"]
[Site "Chess.com"]
[Date "2023.10.10"]
[Round "3"]
[White "Beca95"]
[Black "Iskusnyh"]
[Result "1-0"]
[WhiteElo "2897"]
[BlackElo "2589"]
[TimeControl "180+1"]
[EndTime "8:26:31 PDT"]
[Termination "Beca95 won on time"]

1. e4 {[%clk 0:03:00.9]} 1... e6 {[%clk 0:02:57.1]} 2. c3 {[%clk 0:02:58.6]}
2... d5 {[%clk 0:02:54.6]} 3. e5 {[%clk 0:02:58.6]} 3... c5 {[%clk 0:02:54]} 4.
f4 {[%clk 0:02:58.5]} 4... Nc6 {[%clk 0:02:52.2]} 5. Nf3 {[%clk 0:02:58.6]} 5...
Nh6 {[%clk 0:02:51.6]} 6. Bd3 {[%clk 0:02:58.6]} 6... c4 {[%clk 0:02:38.1]} 7.
Bc2 {[%clk 0:02:58.3]} 7... d4 {[%clk 0:02:38.2]} 8. Be4 {[%clk 0:02:57.4]} 8...
Bc5 {[%clk 0:02:34.2]} 9. Qa4 {[%clk 0:02:52.4]} 9... O-O {[%clk 0:02:16.5]} 10.
Qxc4 {[%clk 0:02:51]} 10... Bb6 {[%clk 0:02:15.6]} 11. Qe2 {[%clk 0:02:49.2]}
11... Nf5 {[%clk 0:02:10.2]} 12. c4 {[%clk 0:02:44]} 12... d3 {[%clk 0:02:05.2]}
13. Qxd3 {[%clk 0:02:40.5]} 13... Ncd4 {[%clk 0:01:52.1]} 14. Nc3 {[%clk
0:02:37.7]} 14... Nxf3+ {[%clk 0:01:36.3]} 15. Qxf3 {[%clk 0:02:36.3]} 15... Nd4
{[%clk 0:01:35.3]} 16. Qh3 {[%clk 0:02:35.9]} 16... g6 {[%clk 0:01:15.7]} 17. b3
{[%clk 0:02:32.4]} 17... f5 {[%clk 0:01:09.9]} 18. Bd3 {[%clk 0:02:23.1]} 18...
g5 {[%clk 0:00:57]} 19. Bb2 {[%clk 0:02:21.5]} 19... gxf4 {[%clk 0:00:22.1]} 20.
O-O-O {[%clk 0:02:18.3]} 20... Bd7 {[%clk 0:00:19.8]} 21. Ne2 {[%clk 0:02:16.8]}
21... Nxe2+ {[%clk 0:00:16.6]} 22. Bxe2 {[%clk 0:02:17.7]} 22... a5 {[%clk
0:00:12.3]} 23. Rhf1 {[%clk 0:02:08.5]} 23... a4 {[%clk 0:00:12.2]} 24. Rxf4
{[%clk 0:02:08.2]} 24... axb3 {[%clk 0:00:11.8]} 25. axb3 {[%clk 0:02:08.9]}
25... Bc5 {[%clk 0:00:12.1]} 26. g4 {[%clk 0:01:44.1]} 26... Ba3 {[%clk
0:00:11.3]} 27. gxf5 {[%clk 0:01:42.1]} 27... Qa5 {[%clk 0:00:10.9]} 28. Rg1+
{[%clk 0:01:41.2]} 28... Kf7 {[%clk 0:00:07.3]} 29. fxe6+ {[%clk 0:01:40.1]}
29... Ke8 {[%clk 0:00:07.3]} 30. exd7+ {[%clk 0:01:38.5]} 1-0

[Event "Early-Titled-Tuesday-Blitz-October-10-2023"]
[Site "Chess.com"]
[Date "2023.10.10"]
[Round "3"]
[White "ErikRonka"]
[Black "OparinGrigoriy"]
[Result "0-1"]
[WhiteElo "2522"]
[BlackElo "2994"]
[TimeControl "180+1"]
[EndTime "8:26:33 PDT"]
[Termination "OparinGrigoriy won by resignation"]

1. e4 {[%clk 0:02:56.8]} 1... c5 {[%clk 0:02:59.2]} 2. Nf3 {[%clk 0:02:57.1]}
2... Nc6 {[%clk 0:02:59.9]} 3. d4 {[%clk 0:02:57.4]} 3... cxd4 {[%clk
0:03:00.1]} 4. Nxd4 {[%clk 0:02:58.2]} 4... e5 {[%clk 0:03:01]} 5. Nb5 {[%clk
0:02:58.2]} 5... d6 {[%clk 0:03:01.7]} 6. N1c3 {[%clk 0:02:58.7]} 6... a6 {[%clk
0:03:01.2]} 7. Na3 {[%clk 0:02:59.2]} 7... Rb8 {[%clk 0:03:01.4]} 8. Nc4 {[%clk
0:02:54.9]} 8... Be6 {[%clk 0:02:57.1]} 9. Nd5 {[%clk 0:02:48.8]} 9... Bxd5
{[%clk 0:02:26.6]} 10. exd5 {[%clk 0:02:49.7]} 10... Nce7 {[%clk 0:02:27.2]} 11.
a4 {[%clk 0:02:45]} 11... Nf6 {[%clk 0:02:25.8]} 12. Ne3 {[%clk 0:02:33.4]}
12... g6 {[%clk 0:02:12.9]} 13. a5 {[%clk 0:02:21.5]} 13... Bh6 {[%clk
0:02:06.7]} 14. c4 {[%clk 0:02:14.6]} 14... b6 {[%clk 0:02:07.2]} 15. axb6
{[%clk 0:02:11.2]} 15... Qxb6 {[%clk 0:02:08.1]} 16. Qa4+ {[%clk 0:02:02.6]}
16... Kf8 {[%clk 0:02:06.4]} 17. Ra2 {[%clk 0:01:51.6]} 17... Ne4 {[%clk
0:02:00.3]} 18. Be2 {[%clk 0:01:37]} 18... Nf5 {[%clk 0:01:57.1]} 19. Ra3 {[%clk
0:00:59.5]} 19... Nxe3 {[%clk 0:01:27.9]} 20. fxe3 {[%clk 0:00:57.7]} 20... Nc5
{[%clk 0:01:27.1]} 21. Qc6 {[%clk 0:00:17.2]} 21... Qb4+ {[%clk 0:01:23.8]} 22.
Kf2 {[%clk 0:00:16.5]} 22... Rb6 {[%clk 0:01:24]} 23. Qc7 {[%clk 0:00:13.9]}
23... Kg7 {[%clk 0:01:19.3]} 24. Rf1 {[%clk 0:00:12.4]} 24... Rb7 {[%clk
0:01:17.8]} 25. Qxd6 {[%clk 0:00:11.8]} 25... Ne4+ {[%clk 0:01:18]} 0-1